lending/lending_fUSD_20240621
["ID","MTS","AMOUNT","RATE_DAILY","PERIOD"]
[330090781,1718989923059,-729.79,0.0002629,4]
[330090782,1718989923069,-1256.24,0.0002629,4]
[330090783,1718989923078,-1422.04,0.0002629,4]
[330090784,1718989923088,-656.57,0.0002629,4]
[330090785,1718989923098,-1852.92,0.0002629,4]
[330090786,1718989923111,-625.57,0.0002629,4]
[330090787,1718989923122,-666.91,0.0002629,4]
[330090788,1718989923131,-1499.6,0.0002629,4]
[330090789,1718989923141,-765.5,0.0002629,4]
[330090790,1718989923152,-2424.04,0.0002629,4]
[330090791,1718989923163,-500.0,0.0002629,4]
[330090792,1718989923173,-4987.88,0.0002629,4]
[330090793,1718989923185,-2211.22,0.0002629,4]
[330090794,1718989923197,-915.87,0.0002629,4]
[330090795,1718989923207,-787.23,0.0002629,4]
[330090796,1718989923217,-637.63,0.0002629,4]
[330090797,1718989923226,-1221.9,0.0002629,4]
[330090798,1718989923235,-1018.75,0.0002629,4]
[330090799,1718989923245,-501.59,0.0002629,4]
[330090800,1718989923254,-500.0,0.0002629,4]
[330090801,1718989923264,-869.8,0.0002629,4]
[330090802,1718989923274,-500.0,0.0002629,8]
[330090803,1718989923283,-748.62,0.0002629,4]
[330090804,1718989923293,-2336.91,0.0002629,4]
[330090805,1718989923303,-1361.85,0.0002629,4]
[330090806,1718989923312,-1018.85,0.0002629,4]
[330090807,1718989923321,-16289.33,0.0002629,4]
[330090808,1718989923331,-2349.59,0.0002629,4]
[330090809,1718989923340,-650.0,0.0002629,4]
[330090810,1718989923350,-500.0,0.0002629,4]
[330090811,1718989923361,-979.16,0.0002629,4]
[330090812,1718989923371,-772.03,0.0002629,4]
[330090813,1718989923380,-1085.42,0.0002629,4]
[330090814,1718989923391,-1856.06,0.0002629,4]
[330090815,1718989923401,-581.94,0.0002629,4]
[330090816,1718989923412,-1071.94,0.0002629,4]
[330090817,1718989923421,-500.0,0.0002629,4]
[330090818,1718989923431,-676.76,0.0002629,4]
[330090819,1718989923443,-1530.22,0.0002629,4]
[330090820,1718989923453,-500.0,0.0002629,4]
[330090821,1718989923463,-1352.93,0.0002629,4]
[330090822,1718989923473,-828.24,0.0002629,4]
[330090823,1718989923483,-758.24,0.0002629,4]
[330090824,1718989923493,-1938.16,0.0002629,4]
[330090825,1718989923502,-500.0,0.0002629,4]
[330090826,1718989923511,-556.62,0.0002629,4]
[330090827,1718989923520,-2261.53,0.0002629,4]
[330090828,1718989923529,-2348.18,0.0002629,4]
[330090829,1718989923539,-222.96,0.0002629,4]
[330090830,1718989923548,-600.2,0.0002629,4]
[330090831,1718989923558,-200.0,0.0002629,7]
[330090832,1718989923567,-1091.2,0.0002629,4]
[330090833,1718989923577,-1100.71,0.0002629,4]
[330090834,1718989923587,-12938.97,0.0002629,4]
[330090835,1718989923596,-1965.19,0.0002629,4]
[330090836,1718989923606,-638.92,0.0002629,4]
[330090837,1718989923615,-635.23,0.0002629,4]
[330090838,1718989923625,-1762.14,0.0002629,4]
[330090839,1718989923634,-1859.99,0.0002629,4]
[330090840,1718989923644,-992.0,0.0002629,4]
[330090841,1718989923653,-656.75,0.0002629,4]
[330090842,1718989923663,-2222.41,0.0002629,4]
[330090843,1718989923673,-349.218432,0.0002629,7]
[330090844,1718989923686,-860.86,0.0002629,4]
[330090845,1718989923696,-349.218432,0.0002629,7]
[330090846,1718989923706,-1049.63,0.0002629,4]
[330090847,1718989923716,-672.47,0.0002629,4]
[330090848,1718989923727,-500.0,0.0002629,4]
[330090849,1718989923737,-3375.56,0.0002629,4]
[330090850,1718989923746,-2480.67,0.0002629,4]
[330090851,1718989923756,-652.86,0.0002629,4]
[330090852,1718989923765,-2569.55,0.0002629,4]
[330090853,1718989923777,-154.59692945,0.00026298,2]
[330090854,1718989923787,-80000.0,0.000263,2]
[330090855,1718989923798,-1000.0,0.000263,4]
[330090856,1718989923809,-1000.0,0.000263,3]
[330090857,1718989923819,-1000.0,0.000263,2]
[330090858,1718989923830,-500.0,0.000263,4]
[330090859,1718989923839,-1833.6,0.000263,4]
[330090860,1718989923849,-1662.17,0.000263,4]
[330090861,1718989923859,-1196.01,0.000263,4]
[330090862,1718989923868,-1323.04,0.000263,4]
[330090863,1718989923878,-1815.14,0.000263,4]
[330090864,1718989923889,-1488.18,0.000263,4]
[330090865,1718989923898,-657.08,0.000263,4]
[330090866,1718989923908,-794.21,0.000263,4]
[330090867,1718989923918,-2173.9,0.000263,4]
[330090868,1718989923928,-1700.13,0.000263,4]
[330090869,1718989923939,-703.12,0.000263,4]
[330090870,1718989923948,-500.0,0.000263,4]
[330090871,1718989923957,-1792.19,0.000263,4]
[330090872,1718989923966,-645.07,0.000263,4]
[330090873,1718989923976,-500.0,0.000263,4]
[330090874,1718989923985,-500.0,0.000263,4]
[330090875,1718989923994,-831.31,0.000263,4]
[330090876,1718989924004,-1274.46,0.000263,4]
[330090877,1718989924013,-500.0,0.000263,4]
[330090878,1718989924023,-422.71,0.000263,4]
[330090879,1718989924033,-1390.32,0.000263,4]
[330090880,1718989924042,-2085.31,0.000263,4]
[330090881,1718989924052,-2038.36,0.000263,4]
[330090882,1718989924062,-500.0,0.000263,4]
[330090883,1718989924071,-961.12,0.000263,4]
[330090884,1718989924081,-875.07,0.000263,4]
[330090885,1718989924092,-593.07667538,0.000263,4]
[330090886,1718989924101,-727.93,0.000263,4]
[330090887,1718989924117,-1432.85,0.000263,4]
[330090888,1718989924127,-1981.72,0.000263,4]
[330090889,1718989924137,-500.0,0.000263,4]
[330090890,1718989924147,-1176.2,0.000263,4]
[330090891,1718989924157,-500.0,0.000263,4]
[330090892,1718989924167,-1836.11,0.000263,4]
[330090893,1718989924176,-1666.62,0.000263,4]
[330090894,1718989924187,-1088.29,0.000263,4]
[330090895,1718989924197,-500.0,0.000263,4]
[330090896,1718989924207,-425.36,0.000263,4]
[330090897,1718989924216,-500.0,0.000263,4]
[330090898,1718989924225,-1712.42,0.000263,4]
[330090899,1718989924235,-864.04,0.000263,4]
[330090900,1718989924246,-1441.44,0.000263,4]
[330090901,1718989924256,-500.0,0.000263,4]
[330090902,1718989924266,-664.38,0.000263,4]
[330090903,1718989924275,-914.89,0.000263,4]
[330090904,1718989924284,-1656.03,0.000263,4]
[330090905,1718989924294,-2699.53,0.000263,4]
[330090906,1718989924304,-1310.25,0.000263,4]
[330090907,1718989924314,-4009.92,0.000263,4]
[330090908,1718989924323,-1193.59,0.000263,4]
[330090909,1718989924333,-500.0,0.00026301,3]
[330090910,1718989924343,-500.0,0.00026301,4]
[330090911,1718989924354,-710.94,0.00026301,4]
[330090912,1718989924364,-500.0,0.00026301,4]
[330090913,1718989924373,-797.24,0.00026301,4]
[330090914,1718989924384,-617.5,0.00026301,4]
[330090915,1718989924395,-500.0,0.00026301,4]
[330090916,1718989924405,-500.0,0.00026301,4]
[330090917,1718989924416,-798.04,0.00026301,4]
[330090918,1718989924426,-735.75,0.00026301,4]
[330090919,1718989924436,-500.0,0.00026301,4]
[330090920,1718989924445,-500.0,0.00026301,4]
[330090921,1718989924455,-754.93,0.00026301,4]
[330090922,1718989924467,-595.79,0.00026301,4]
[330090923,1718989924476,-738.1,0.00026301,4]
[330090924,1718989924485,-1205.55,0.00026301,4]
[330090925,1718989924495,-500.0,0.00026301,2]
[330090926,1718989924504,-500.0,0.00026301,4]
[330090927,1718989924514,-522.35,0.00026301,4]
[330090928,1718989924524,-985.93,0.00026301,4]
[330090929,1718989924533,-668.33,0.00026301,4]
[330090930,1718989924543,-548.21,0.00026301,4]
[330090931,1718989924553,-679.56,0.00026301,4]
[330090932,1718989924563,-500.0,0.00026301,4]
[330090933,1718989924572,-780.77,0.00026301,4]
[330090934,1718989924582,-582.75,0.00026301,4]
[330090935,1718989924591,-500.0,0.00026301,4]
[330090936,1718989924600,-500.0,0.00026301,4]
[330090937,1718989924609,-584.71,0.00026301,4]
[330090938,1718989924618,-563.5,0.00026301,4]
[330090939,1718989924627,-1042.2,0.00026301,4]
[330090940,1718989924636,-588.19,0.00026301,4]
[330090941,1718989924646,-687.44,0.00026301,4]
[330090942,1718989924655,-811.36,0.00026301,4]
[330090943,1718989924665,-717.66,0.00026301,4]
[330090944,1718989924675,-621.56,0.00026301,4]
[330090945,1718989924684,-531.24,0.00026301,4]
[330090946,1718989924694,-500.0,0.00026301,4]
[330090947,1718989924703,-1201.37,0.00026301,4]
[330090948,1718989924714,-500.0,0.00026301,4]
[330090949,1718989924725,-522.9,0.00026301,4]
[330090950,1718989924734,-742.2,0.00026301,4]
[330090951,1718989924744,-340.76870842,0.00026301,4]
[330090952,1718989924754,-1192.22,0.00026301,4]
[330090953,1718989924764,-500.0,0.00026301,4]
[330090954,1718989924776,-938.16,0.00026301,4]
[330090955,1718989924785,-500.0,0.00026301,4]
[330090956,1718989924796,-1372.38,0.00026301,4]
[330090957,1718989924807,-500.0,0.00026301,4]
[330090958,1718989924817,-624.64,0.00026301,4]
[330090959,1718989924827,-1457.99,0.00026301,4]
[330090960,1718989924837,-511.55,0.00026301,4]
[330090961,1718989924847,-595.44,0.00026301,4]
[330090962,1718989924855,-963.23,0.00026301,4]
[330090963,1718989924864,-759.23,0.00026301,4]
[330090964,1718989924874,-1020.76,0.00026301,4]
[330090965,1718989924883,-1064.78,0.00026301,4]
[330090966,1718989924893,-873.22,0.00026301,4]
[330090967,1718989924902,-733.93,0.00026301,4]
[330090968,1718989924912,-2686.69,0.00026301,4]
[330090969,1718989924922,-1011.28,0.00026301,4]
[330090970,1718989924931,-852.94,0.00026301,4]
[330090971,1718989924943,-554.48,0.00026301,4]
[330090972,1718989924952,-500.0,0.00026301,4]
[330090973,1718989924962,-500.0,0.00026301,4]
[330090974,1718989924973,-768.74,0.00026301,4]
[330090975,1718989924983,-1467.03,0.00026301,4]
[330090976,1718989924993,-1066.65,0.00026301,4]
[330090977,1718989925002,-500.0,0.00026301,4]
[330090978,1718989925012,-735.92,0.00026301,4]
[330090979,1718989925022,-899.57,0.00026301,4]
[330090980,1718989925032,-1342.26,0.00026301,4]
[330090981,1718989925041,-500.0,0.00026301,4]
[330090982,1718989925050,-585.36,0.00026301,4]
[330090983,1718989925060,-509.69,0.00026301,4]
[330090984,1718989925069,-667.28,0.00026301,4]
[330090985,1718989925078,-500.0,0.00026301,4]
[330090986,1718989925087,-2179.3,0.00026301,4]
[330090987,1718989925097,-906.35,0.00026301,4]
[330090988,1718989925107,-858.28,0.00026301,4]
[330090989,1718989925118,-559.84,0.00026301,4]
[330090990,1718989925130,-1415.8,0.00026301,4]
[330090991,1718989925139,-1930.31,0.00026301,4]
[330090992,1718989925148,-1505.14,0.00026301,4]
[330090993,1718989925158,-859.86,0.00026301,4]
[330090994,1718989925167,-282.61,0.00026301,4]
[330090995,1718989925177,-642.24,0.00026301,4]
[330090996,1718989925189,-1397.1,0.00026301,4]
[330090997,1718989925199,-602.59,0.00026301,4]
[330090998,1718989925209,-570.91,0.00026301,4]
[330090999,1718989925218,-500.0,0.00026301,4]
[330091000,1718989925228,-669.19,0.00026301,4]
[330091001,1718989925237,-1901.91,0.00026301,4]
[330091002,1718989925247,-1273.57,0.00026301,4]
[330091003,1718989925256,-500.0,0.00026301,4]
[330091004,1718989925266,-963.28,0.00026301,4]
[330091005,1718989925275,-532.82,0.00026301,4]
[330091006,1718989925285,-2148.29,0.00026301,4]
[330091007,1718989925295,-904.13,0.00026301,4]
[330091008,1718989925305,-1923.19,0.00026301,4]
[330091009,1718989925314,-1655.82,0.00026301,4]
[330091010,1718989925324,-500.0,0.00026301,4]
[330091011,1718989925334,-590.93,0.00026301,4]
[330091012,1718989925344,-511.56,0.00026301,4]
[330091013,1718989925354,-1612.01,0.00026301,4]
[330091014,1718989925363,-2137.42,0.00026301,4]
[330091015,1718989925374,-573.05,0.00026301,4]
[330091016,1718989925384,-3053.94,0.00026301,4]
[330091017,1718989925395,-639.37,0.00026301,4]
[330091018,1718989925406,-682.46,0.00026301,4]
[330091019,1718989925416,-2243.82,0.00026301,4]
[330091020,1718989925426,-1600.73,0.00026301,4]
[330091021,1718989925438,-696.06,0.00026301,4]
[330091022,1718989925447,-423.98185836,0.00026301,4]
[330091023,1718989925457,-1542.7,0.00026301,4]
[330091024,1718989925466,-1105.98,0.00026301,4]
[330091025,1718989925475,-1549.93,0.00026301,4]
[330091026,1718989925484,-833.57,0.00026301,4]
[330091027,1718989925494,-2659.75,0.00026301,4]
[330091028,1718989925503,-1158.3,0.00026301,4]
[330091029,1718989925513,-533.64,0.00026301,4]
[330091030,1718989925522,-833.78,0.00026301,4]
[330091031,1718989925531,-685.86,0.00026301,4]
[330091032,1718989925540,-1289.2,0.00026301,4]
[330091033,1718989925550,-1090.97,0.00026301,4]
[330091034,1718989925560,-599.47,0.00026301,4]
[330091035,1718989925570,-2819.08,0.00026301,4]
[330091036,1718989925580,-7009.44,0.00026301,4]
[330091037,1718989925589,-591.52,0.00026301,4]
[330091038,1718989925599,-1505.93,0.00026301,4]
[330091039,1718989925608,-824.93,0.00026301,4]
[330091040,1718989925618,-500.0,0.00026301,4]
[330091041,1718989925629,-3331.02,0.00026301,4]
[330091042,1718989925640,-1405.37,0.00026301,4]
[330091043,1718989925650,-5922.66,0.00026301,4]
[330091044,1718989925659,-905.75,0.00026301,4]
[330091045,1718989925668,-6608.91,0.00026301,4]
[330091046,1718989925678,-580.05,0.00026301,4]
[330091047,1718989925688,-540.71,0.00026301,4]
[330091048,1718989925698,-838.13,0.00026301,4]
[330091049,1718989925707,-500.0,0.00026301,4]
[330091050,1718989925717,-823.35,0.00026301,4]
[330091051,1718989925726,-535.25,0.00026301,4]
[330091052,1718989925736,-887.04,0.00026301,4]
[330091053,1718989925746,-1378.35,0.00026301,4]
[330091054,1718989925755,-500.0,0.00026301,4]
[330091055,1718989925765,-500.0,0.00026301,4]
[330091056,1718989925774,-1812.66,0.00026301,4]
[330091057,1718989925784,-1256.45,0.00026301,4]
[330091058,1718989925794,-647.36,0.00026301,4]
[330091059,1718989925804,-772.11,0.00026301,4]
[330091060,1718989925813,-939.73,0.00026301,4]
[330091061,1718989925824,-1304.96,0.00026301,4]
[330091062,1718989925833,-1184.79,0.00026301,4]
[330091063,1718989925843,-1482.67,0.00026301,4]
[330091064,1718989925854,-1172.14,0.00026301,4]
[330091065,1718989925864,-1060.14,0.00026301,4]
[330091066,1718989925874,-3886.53,0.00026301,4]
[330091067,1718989925884,-654.99,0.00026301,4]
[330091068,1718989925893,-1021.14,0.00026301,4]
[330091069,1718989925903,-25963.77,0.00026301,4]
[330091070,1718989925912,-1656.59,0.00026301,4]
[330091071,1718989925921,-1438.15,0.00026301,4]
[330091072,1718989925931,-500.0,0.00026301,4]
[330091073,1718989925942,-1558.07,0.00026301,4]
[330091074,1718989925951,-500.0,0.00026301,4]
[330091075,1718989925961,-1206.43,0.00026301,4]
[330091076,1718989925970,-1774.24,0.00026301,4]
[330091077,1718989925979,-1123.84,0.00026301,4]
[330091078,1718989925988,-1807.53,0.00026301,4]
[330091079,1718989925998,-1718.78,0.00026301,4]
[330091080,1718989926008,-736.5,0.00026301,4]
[330091081,1718989926017,-80573.59,0.00026301,2]
[330091082,1718989926027,-154.59692945,0.00026339,2]
[330091083,1718989926036,-500.0,0.0002639,2]
[330091084,1718989926046,-30873.23845476,0.000264,2]
[330091085,1718989926055,-25932.39665158,0.000264,2]
[330091086,1718989926064,-1619.05887305,0.000264,5]
[330091087,1718989926073,-6421.9,0.00026459,7]
[330091088,1718989926084,-6421.9,0.00026459,7]
[330091089,1718989926094,-1649.68495523,0.000265,4]
[330091090,1718989926103,-500.0,0.000265,2]
[330091091,1718989926118,-166.66666666,0.00026504,2]
[330091092,1718989926128,-1356.86,0.00026551,4]
[330091093,1718989926138,-3062.37,0.00026551,4]
[330091094,1718989926148,-1533.09,0.00026551,4]
[330091095,1718989926159,-5990.91,0.00026551,4]
[330091096,1718989926168,-1110.17,0.00026551,4]
[330091097,1718989926177,-11925.19,0.00026551,4]
[330091098,1718989926187,-3672.46,0.00026551,4]
[330091099,1718989926198,-6178.73,0.00026551,4]
[330091100,1718989926207,-1501.96,0.00026551,4]
[330091101,1718989926217,-3518.52,0.00026551,4]
[330091102,1718989926226,-155.26088297,0.00026553,2]
[330091103,1718989926235,-1989.12,0.00026563,4]
[330091104,1718989926245,-2398.6,0.00026563,4]
[330091105,1718989926254,-42723.34,0.00026563,4]
[330091106,1718989926264,-1860.96,0.00026563,4]
[330091107,1718989926273,-7757.24,0.00026563,4]
[330091108,1718989926283,-2969.44,0.00026563,4]
[330091109,1718989926292,-500.0,0.00026563,2]
[330091110,1718989926301,-2619.5,0.00026563,4]
[330091111,1718989926311,-4343.94,0.00026563,4]
[330091112,1718989926319,-946.76,0.00026563,4]
[330091113,1718989926328,-1067.33,0.00026563,4]
[330091114,1718989926338,-11069.13,0.00026563,4]
[330091115,1718989926348,-2041.56,0.00026563,4]
[330091116,1718989926357,-2855.93,0.00026563,4]
[330091117,1718989926366,-871.25,0.00026564,4]
[330091118,1718989926376,-2040.63,0.00026564,4]
[330091119,1718989926384,-1063.28,0.00026564,4]
[330091120,1718989926394,-2566.45,0.00026564,4]
[330091121,1718989926403,-1747.85,0.00026564,4]
[330091122,1718989926413,-574.66,0.00026564,4]
[330091123,1718989926422,-1705.93,0.00026564,4]
[330091124,1718989926431,-500.0,0.00026564,4]
[330091125,1718989926442,-790.72,0.00026564,4]
[330091126,1718989926451,-614.11,0.00026564,4]
[330091127,1718989926461,-1508.15,0.00026564,4]
[330091128,1718989926470,-267.13656435,0.00026564,4]
[330091129,1718989926480,-655.33,0.00026564,4]
[330091130,1718989926489,-900.76,0.00026564,4]
[330091131,1718989926499,-1711.8,0.00026564,4]
[330091132,1718989926508,-500.0,0.00026564,4]
[330091133,1718989926518,-500.0,0.00026564,4]
[330091134,1718989926527,-1259.32,0.00026564,4]
[330091135,1718989926538,-543.58,0.00026564,4]
[330091136,1718989926547,-1395.51,0.00026564,4]
[330091137,1718989926557,-500.0,0.00026564,4]
[330091138,1718989926567,-779.08,0.00026564,4]
[330091139,1718989926681,-882.56,0.00026564,4]
[330091140,1718989926693,-1115.61,0.00026564,4]
[330091141,1718989926703,-500.0,0.00026564,4]
[330091142,1718989926712,-500.0,0.00026564,4]
[330091143,1718989926722,-500.0,0.00026564,4]
[330091144,1718989926732,-500.0,0.00026564,4]
[330091145,1718989926742,-1759.77,0.00026564,4]
[330091146,1718989926752,-500.0,0.00026564,4]
[330091147,1718989926762,-500.0,0.00026564,4]
[330091148,1718989926772,-562.58,0.00026564,4]
[330091149,1718989926782,-1118.22,0.00026564,4]
[330091150,1718989926794,-289.91316791,0.00026564,4]
[330091151,1718989926804,-1073.61,0.00026564,4]
[330091152,1718989926814,-1028.37,0.00026564,4]
[330091153,1718989926824,-565.65,0.00026564,4]
[330091154,1718989926835,-1694.42,0.00026564,4]
[330091155,1718989926844,-538.43,0.00026564,4]
[330091156,1718989926854,-1124.0,0.00026564,4]
[330091157,1718989926864,-1310.65,0.00026564,4]
[330091158,1718989926874,-500.0,0.00026564,4]
[330091159,1718989926883,-1974.58,0.00026564,4]
[330091160,1718989926893,-1560.47,0.00026564,4]
[330091161,1718989926903,-1456.87,0.00026564,4]
[330091162,1718989926913,-1350.6,0.00026564,4]
[330091163,1718989926923,-766.53,0.00026564,4]
[330091164,1718989926932,-209.58,0.00026564,4]
[330091165,1718989926945,-1457.49,0.00026564,4]
[330091166,1718989926955,-1549.35,0.00026564,4]
[330091167,1718989926964,-1276.6,0.00026564,4]
[330091168,1718989926974,-661.51,0.00026564,4]
[330091169,1718989926984,-616.1,0.00026564,4]
[330091170,1718989926994,-759.07,0.00026564,4]
[330091171,1718989927004,-1007.76,0.00026564,4]
[330091172,1718989927013,-558.75,0.00026564,4]
[330091173,1718989927024,-520.63,0.00026564,4]
[330091174,1718989927033,-500.0,0.00026564,4]
[330091175,1718989927043,-500.0,0.00026564,4]
[330091176,1718989927052,-750.4,0.00026564,4]
[330091177,1718989927062,-500.0,0.00026564,4]
[330091178,1718989927072,-500.0,0.00026564,4]
[330091179,1718989927082,-500.0,0.00026564,4]
[330091180,1718989927093,-674.53,0.00026564,4]
[330091181,1718989927102,-919.98,0.00026564,4]
[330091182,1718989927113,-1723.58,0.00026564,4]
[330091183,1718989927127,-500.0,0.00026564,4]
[330091184,1718989927137,-572.44,0.00026564,4]
[330091185,1718989927147,-966.63,0.00026564,4]
[330091186,1718989927157,-500.0,0.00026564,4]
[330091187,1718989927168,-574.64,0.00026564,4]
[330091188,1718989927178,-551.74,0.00026564,4]
[330091189,1718989927189,-500.0,0.00026564,4]
[330091190,1718989927199,-853.88,0.00026564,4]
[330091191,1718989927210,-769.31,0.00026564,4]
[330091192,1718989927220,-2295.96,0.00026564,5]
[330091193,1718989927229,-500.0,0.00026564,4]
[330091194,1718989927240,-584.18,0.00026564,4]
[330091195,1718989927250,-754.91,0.00026564,4]
[330091196,1718989927260,-500.0,0.00026564,4]
[330091197,1718989927269,-920.79,0.00026564,4]
[330091198,1718989927279,-2478.71,0.00026564,4]
[330091199,1718989927288,-843.52,0.00026564,4]
[330091200,1718989927298,-667.94,0.00026564,4]
[330091201,1718989927308,-878.77,0.00026564,4]
[330091202,1718989927318,-1915.42,0.00026564,4]
[330091203,1718989927327,-500.0,0.00026564,4]
[330091204,1718989927338,-1207.42,0.00026564,4]
[330091205,1718989927347,-500.0,0.00026564,4]
[330091206,1718989927358,-944.02,0.00026564,4]
[330091207,1718989927367,-1304.29,0.00026564,4]
[330091208,1718989927377,-500.0,0.00026564,4]
[330091209,1718989927387,-729.79,0.00026564,4]
[330091210,1718989927398,-1256.24,0.00026564,4]
[330091211,1718989927408,-1422.04,0.00026564,4]
[330091212,1718989927418,-656.57,0.00026564,4]
[330091213,1718989927428,-1852.92,0.00026564,4]
[330091214,1718989927440,-625.57,0.00026564,4]
[330091215,1718989927449,-666.91,0.00026564,4]
[330091216,1718989927458,-1499.6,0.00026564,4]
[330091217,1718989927468,-765.5,0.00026564,4]
[330091218,1718989927478,-2424.04,0.00026564,4]
[330091219,1718989927488,-500.0,0.00026564,4]
[330091220,1718989927498,-4987.88,0.00026564,4]
[330091221,1718989927508,-2211.22,0.00026564,4]
[330091222,1718989927517,-915.87,0.00026564,4]
[330091223,1718989927527,-787.23,0.00026564,4]
[330091224,1718989927537,-637.63,0.00026564,4]
[330091225,1718989927547,-1221.9,0.00026564,4]
[330091226,1718989927557,-1018.75,0.00026564,4]
[330091227,1718989927568,-501.59,0.00026564,4]
[330091228,1718989927578,-500.0,0.00026564,4]
[330091229,1718989927588,-869.8,0.00026564,4]
[330091230,1718989927598,-500.0,0.00026564,8]
[330091231,1718989927608,-748.62,0.00026564,4]
[330091232,1718989927618,-2336.91,0.00026564,4]
[330091233,1718989927628,-1361.85,0.00026564,4]
[330091234,1718989927638,-1018.85,0.00026564,4]
[330091235,1718989927648,-16289.33,0.00026564,4]
[330091236,1718989927657,-2349.59,0.00026564,4]
[330091237,1718989927667,-650.0,0.00026564,4]
[330091238,1718989927677,-500.0,0.00026564,4]
[330091239,1718989927688,-979.16,0.00026564,4]
[330091240,1718989927698,-772.03,0.00026564,4]
[330091241,1718989927707,-1085.42,0.00026564,4]
[330091242,1718989927717,-1856.06,0.00026564,4]
[330091243,1718989927727,-581.94,0.00026564,4]
[330091244,1718989927737,-1071.94,0.00026564,4]
[330091245,1718989927752,-500.0,0.00026564,4]
[330091246,1718989927770,-676.76,0.00026564,4]
[330091247,1718989927788,-1530.22,0.00026564,4]
[330091248,1718989927798,-500.0,0.00026564,4]
[330091249,1718989927808,-1352.93,0.00026564,4]
[330091250,1718989927818,-828.24,0.00026564,4]
[330091251,1718989927828,-758.24,0.00026564,4]
[330091252,1718989927838,-1938.16,0.00026564,4]
[330091253,1718989927848,-500.0,0.00026564,4]
[330091254,1718989927857,-556.62,0.00026564,4]
[330091255,1718989927867,-2348.18,0.00026564,4]
[330091256,1718989927876,-2261.53,0.00026564,4]
[330091257,1718989927887,-600.2,0.00026564,4]
[330091258,1718989927897,-200.0,0.00026564,7]
[330091259,1718989927907,-1091.2,0.00026564,4]
[330091260,1718989927917,-1100.71,0.00026564,4]
[330091261,1718989927926,-12938.97,0.00026564,4]
[330091262,1718989927937,-1965.19,0.00026564,4]
[330091263,1718989927947,-638.92,0.00026564,4]
[330091264,1718989927956,-635.23,0.00026564,4]
[330091265,1718989927966,-1762.14,0.00026564,4]
[330091266,1718989927975,-992.0,0.00026564,4]
[330091267,1718989927985,-1859.99,0.00026564,4]
[330091268,1718989927995,-656.75,0.00026564,4]
[330091269,1718989928004,-2222.41,0.00026564,4]
[330091270,1718989928014,-860.86,0.00026564,4]
[330091271,1718989928024,-1049.63,0.00026564,4]
[330091272,1718989928034,-672.47,0.00026564,4]
[330091273,1718989928044,-500.0,0.00026564,4]
[330091274,1718989928054,-3375.56,0.00026564,4]
[330091275,1718989928064,-2480.67,0.00026564,4]
[330091276,1718989928074,-652.86,0.00026564,4]
[330091277,1718989928083,-2569.55,0.00026564,4]
[330091278,1718989928093,-500.0,0.00026574,4]
[330091279,1718989928102,-1833.6,0.00026574,4]
[330091280,1718989928117,-1662.17,0.00026574,4]